bitfinex/quotes_ETHUSD_20250425
["timestamp","ask_amount","ask_price","bid_price","bid_amount"]
[1745608716298,6.33868894,1796.9,1796.4,0.66005181]
[1745608716490,0.63386889,1796.8,1796.4,6.22672309]
[1745608716663,0.51891848,1796.8,1796.5,6.37123424]
[1745608716869,0.51896167,1796.7,1796.6,7.08894063]
[1745608717062,0.51891848,1796.8,1796.6,7.03328205]
[1745608717269,0.51891848,1796.8,1796.7,4.798]
[1745608717572,5.56455797,1797.1,1796.7,4.798]
[1745608718775,5.56439953,1797.2,1796.7,10.36375732]
[1745608718980,6.25217973,1797.2,1796.7,10.3637397]
[1745608719296,0.5188753,1797.1,1796.7,10.3637397]
[1745608719598,11.81664733,1797.2,1796.7,10.3637397]
[1745608719762,11.81664733,1797.2,1796.7,4.798]
[1745608719763,5.56452086,1797.1,1796.7,4.798]
[1745608719962,6.25217973,1797.2,1796.8,1.49025181]
[1745608720567,0.51874981,1797.1,1796.8,1.49025181]
[1745608720783,6.25217973,1797.2,1796.8,1.49025181]
[1745608721291,5.56453146,1797.1,1796.8,1.49025181]
[1745608721598,6.25217973,1797.2,1796.8,1.49025181]
[1745608721902,0.51833823,1797.1,1796.8,1.49025181]
[1745608722669,11.81669292,1797.2,1796.8,1.49025181]
[1745608723088,6.08300891,1797.1,1796.8,1.49025181]
[1745608723284,0.51848798,1797.1,1796.8,1.49025181]
[1745608723620,6.25217973,1797.2,1796.8,1.49025181]
[1745608724593,14.67336453,1797.5,1797.1,0.8266]
[1745608724594,5.56377888,1797.4,1797.1,0.8266]
[1745608725206,6.08245463,1797.3,1797.1,0.8266]
[1745608725802,5.56392251,1797.3,1797.1,0.8266]
[1745608726108,11.12763082,1797.4,1797.1,0.8266]
[1745608726281,5.5639106,1797.3,1797.1,0.8266]
[1745608728681,6.75192196,1797.4,1797.1,0.8266]
[1745608729085,6.36652813,1797.7,1797.2,0.66005181]
[1745608729308,0.51818053,1797.6,1797.3,0.783]
[1745608729629,0.51818053,1797.6,1797.4,0.66005181]
[1745608729923,5.56282813,1797.7,1797.4,0.66005181]
[1745608730128,1.1125312,1797.7,1797.4,0.66005181]
[1745608730419,6.08032738,1797.8,1797.5,0.783]
[1745608730908,5.56279295,1797.7,1797.5,0.783]
[1745608731795,5.56236306,1797.8,1797.5,0.783]
[1745608732412,11.12495105,1797.8,1797.5,0.783]
[1745608732621,5.56236306,1797.8,1797.5,0.783]
[1745608733676,11.12494727,1797.8,1797.5,0.783]
[1745608733909,3.0,1798.0,1797.5,0.783]
[1745608734207,11.12508776,1797.8,1797.5,0.783]
[1745608734393,5.56246083,1797.8,1797.5,0.783]
[1745608735084,5.56246083,1797.8,1797.3,0.7627]
[1745608735085,5.56297285,1797.6,1797.3,0.7627]
[1745608735486,5.56278501,1797.7,1797.3,0.7627]
[1745608736212,6.32959688,1797.8,1797.3,1.42275181]
[1745608736419,6.99255657,1797.8,1797.3,1.42275181]
[1745608736584,0.66295969,1797.8,1797.3,6.98652226]
[1745608736912,11.4245277,1797.9,1797.3,6.98652226]
[1745608737418,11.42455038,1797.9,1797.3,6.98652226]
[1745608737584,5.86223189,1797.9,1797.3,6.98648415]
[1745608738006,5.86223189,1797.9,1797.3,6.98645492]
[1745608738730,5.86223189,1797.9,1797.4,0.7926]
[1745608738906,0.58622319,1797.8,1797.4,0.7926]
[1745608739932,5.86223189,1797.9,1797.4,0.7926]
[1745608740807,5.56270207,1797.7,1797.4,0.7926]
[1745608741436,5.56256716,1797.8,1797.4,0.7926]
[1745608741733,5.86220527,1797.9,1797.4,6.35613278]
[1745608742322,11.42448748,1797.9,1797.4,6.35613278]
[1745608742530,5.86220527,1797.9,1797.4,6.35613278]
[1745608742720,6.36841526,1798.0,1797.5,7.04140987]
[1745608742721,11.12395586,1798.0,1797.5,7.04140987]
[1745608742922,5.56191526,1798.0,1797.5,7.04140987]
[1745608743118,5.96619457,1798.2,1797.8,0.8181]
[1745608743332,0.4048936,1798.2,1797.9,0.66005181]
[1745608743697,0.4048936,1798.2,1797.9,6.22207927]
[1745608744029,0.4048936,1798.2,1798.0,0.8181]
[1745608744333,6.56273194,1798.2,1797.8,0.8181]
[1745608744535,0.4048936,1798.2,1797.8,0.8181]
[1745608745218,0.4048936,1798.2,1797.8,6.38023591]
[1745608745435,0.4048936,1798.2,1798.0,0.8181]
[1745608746945,5.96616525,1798.2,1798.0,0.8181]
[1745608748729,5.96603296,1798.2,1798.0,0.8181]
[1745608749332,0.4048936,1798.2,1798.0,0.8181]
[1745608749504,5.96611477,1798.2,1798.0,0.8181]
[1745608750216,0.4048936,1798.2,1798.0,0.8181]
[1745608750536,5.96605318,1798.2,1798.0,0.8181]
[1745608750852,5.9660179,1798.2,1798.0,0.8181]
[1745608751562,0.4048936,1798.2,1798.0,0.8181]
[1745608751840,5.96610645,1798.2,1798.0,0.8181]
[1745608753647,0.4048936,1798.2,1798.0,0.8181]
[1745608753944,5.9661036,1798.2,1798.0,0.8181]
[1745608754152,0.4048936,1798.2,1798.0,0.8181]
[1745608756412,0.4048936,1798.2,1798.1,7.01807775]
[1745608756921,0.4048936,1798.2,1798.1,10.01807775]
[1745608757423,0.4048936,1798.2,1798.1,10.07368082]
[1745608757856,0.4048936,1798.2,1798.1,10.01807775]
[1745608758039,0.4048936,1798.2,1798.1,10.42720655]
[1745608758359,0.4048936,1798.2,1798.1,10.48280952]
[1745608758554,0.4048936,1798.2,1798.1,10.42720655]
[1745608758845,0.4048936,1798.2,1798.1,10.01807775]
[1745608759150,0.4048936,1798.2,1798.1,10.07368337]
[1745608760325,0.4048936,1798.2,1798.1,10.01807775]
[1745608760544,0.4048936,1798.2,1798.1,10.07368073]
[1745608760739,0.4048936,1798.2,1798.1,4.45665181]
[1745608762239,0.4048936,1798.2,1798.1,10.01807775]
[1745608762461,0.4048936,1798.2,1798.1,4.45665181]
[1745608763831,0.4048936,1798.2,1798.0,0.66005181]
[1745608764027,0.4048936,1798.2,1798.0,3.66005181]
[1745608764232,0.4048936,1798.2,1798.0,0.66005181]
[1745608764433,0.4048936,1798.2,1797.7,4.792]
[1745608764434,7.36034381,1798.2,1797.7,4.792]
[1745608764739,5.56153319,1798.1,1797.7,4.792]
[1745608765894,5.56235398,1797.8,1797.7,4.792]
[1745608766175,5.56286274,1797.7,1797.3,0.66005181]
[1745608766334,5.56323483,1797.6,1797.3,0.66005181]
[1745608766765,5.56359185,1797.4,1797.2,4.792]
[1745608766939,6.36303981,1797.5,1797.2,4.792]
[1745608767135,5.56377136,1797.4,1797.2,4.792]
[1745608767840,6.36298371,1797.5,1797.2,4.792]
[1745608769674,5.56359882,1797.4,1797.2,4.792]
[1745608770791,6.33139942,1797.8,1797.3,5.56379437]
[1745608770989,6.33129448,1797.8,1797.4,1.47035181]
[1745608771719,5.56269399,1797.7,1797.4,1.47035181]
[1745608771883,5.56280399,1797.7,1797.2,5.5943]
[1745608772083,5.56308592,1797.6,1797.2,6.25435181]
[1745608772455,5.56285972,1797.7,1797.2,6.25435181]
[1745608772658,11.12580033,1797.7,1797.2,6.25435181]
[1745608772837,5.56300064,1797.6,1797.2,6.25435181]
[1745608773750,5.56267323,1797.7,1797.2,6.25435181]
[1745608774080,5.56298132,1797.6,1797.2,5.5943]
[1745608774242,5.56298132,1797.6,1797.3,0.66005181]
[1745608774683,5.56267323,1797.7,1797.3,0.66005181]
[1745608774879,5.56297452,1797.6,1797.3,0.66005181]
[1745608775244,11.12624582,1797.6,1797.3,0.66005181]
[1745608775466,5.56297452,1797.6,1797.3,0.66005181]
[1745608775664,5.56287275,1797.7,1797.3,0.66005181]
[1745608776269,5.56305657,1797.6,1797.3,0.66005181]
[1745608776704,5.56343256,1797.5,1797.3,0.66005181]
[1745608778194,5.56343256,1797.5,1797.2,4.792]
[1745608778195,5.56359185,1797.4,1797.2,4.792]
[1745608778400,0.813,1797.5,1797.2,4.792]
[1745608778821,6.37647691,1797.5,1797.2,4.792]
[1745608779716,0.813,1797.5,1797.2,4.792]
[1745608780275,6.37637587,1797.5,1797.2,4.792]
[1745608781318,6.37630346,1797.5,1797.2,4.792]
[1745608781486,0.813,1797.5,1797.2,4.792]
[1745608781821,6.37629624,1797.5,1797.2,4.792]
[1745608782611,5.56304893,1797.6,1797.3,0.66005181]
[1745608783114,5.56341696,1797.5,1797.2,5.45205181]
[1745608784110,11.12696922,1797.5,1797.2,5.45205181]
[1745608784314,5.56341696,1797.5,1797.2,5.45205181]
[1745608786611,11.12694065,1797.5,1797.2,5.45205181]
[1745608786913,5.56341696,1797.5,1797.2,5.45205181]
[1745608788013,5.56300236,1797.6,1797.2,5.45205181]
[1745608788410,5.56300236,1797.6,1797.2,6.23715181]
[1745608788715,5.56300236,1797.6,1797.2,11.80133065]
[1745608789116,5.56300236,1797.6,1797.2,6.23715181]
[1745608789280,5.56331612,1797.5,1797.2,6.23715181]
[1745608789480,11.12688123,1797.5,1797.2,6.23715181]
[1745608789778,5.56331612,1797.5,1797.2,6.23715181]
[1745608790417,5.56316779,1797.6,1797.2,6.23715181]
[1745608790418,11.12641494,1797.6,1797.2,6.23715181]
[1745608791214,5.5633084,1797.5,1797.2,6.23715181]
[1745608791419,6.34400355,1797.7,1797.2,11.80132814]
[1745608791915,11.12509987,1797.8,1797.5,0.7989]
[1745608792217,5.56279277,1797.7,1797.5,0.7989]
[1745608792378,6.08195884,1797.7,1797.5,0.7989]
[1745608792773,5.56279277,1797.7,1797.5,0.7989]
[1745608793524,6.11,1797.9,1797.6,0.66005181]
[1745608794021,11.67224227,1797.9,1797.6,0.66005181]
[1745608794385,0.52007859,1797.8,1797.6,0.66005181]
[1745608794788,5.56224227,1797.9,1797.6,0.66005181]
[1745608795715,6.34875266,1797.8,1797.4,3.66005181]
[1745608795919,0.52035806,1797.7,1797.4,3.66005181]
[1745608796122,6.34875266,1797.8,1797.4,3.66005181]
[1745608796323,11.12448587,1797.9,1797.5,0.7722]
[1745608796624,0.52033913,1797.8,1797.5,0.7722]
[1745608797220,0.52033913,1797.7,1797.5,0.7722]
[1745608798026,5.56245086,1797.8,1797.5,0.7722]
[1745608798832,0.52023707,1797.7,1797.5,0.7722]
[1745608799536,5.56245086,1797.8,1797.5,0.7722]
[1745608799709,6.34356143,1797.9,1797.5,0.7722]
[1745608800508,0.52020425,1797.8,1797.5,0.7722]
[1745608800709,5.56276289,1797.7,1797.5,0.7722]
[1745608800910,0.7634,1797.7,1797.2,4.792]
[1745608801112,5.56388401,1797.4,1797.2,4.792]
[1745608801329,6.60360901,1797.6,1797.2,5.45205181]
[1745608801502,6.08353076,1797.5,1797.2,5.45205181]
[1745608801702,6.08382023,1797.4,1797.2,5.45205181]
[1745608801946,5.5639014,1797.3,1796.9,22.93015181]
[1745608802256,5.56481482,1797.1,1796.9,6.45045271]
[1745608802420,6.39411482,1797.1,1796.9,4.791]
[1745608802947,0.8293,1797.1,1796.9,4.791]
[1745608803132,6.39403489,1797.1,1796.9,4.791]
[1745608803641,0.51976419,1797.0,1796.9,4.791]
[1745608804050,6.39383627,1797.1,1796.9,4.791]
[1745608805137,6.08440167,1797.0,1796.9,4.791]
[1745608805308,0.5195714,1797.0,1796.9,4.791]
[1745608805647,0.5195714,1797.0,1796.7,0.66005181]
[1745608805834,6.39384341,1797.1,1796.7,0.66005181]
[1745608806006,5.56492126,1797.0,1796.7,0.66005181]
[1745608806348,5.56524969,1796.9,1796.6,5.5861]
[1745608806650,5.56560798,1796.8,1796.6,4.792]
[1745608806810,6.31999908,1796.8,1796.6,4.792]
[1745608807151,5.56607492,1796.6,1796.3,5.45205181]
[1745608807446,11.13200736,1796.7,1796.3,8.45205181]
[1745608807743,5.56607382,1796.6,1796.3,8.45205181]
[1745608808730,5.56594129,1796.7,1796.3,8.45205181]
[1745608809446,11.1319585,1796.7,1796.3,8.45205181]
[1745608809647,5.56594129,1796.7,1796.3,8.45205181]
[1745608810152,5.56609494,1796.6,1796.3,8.45205181]
[1745608810512,11.13197567,1796.7,1796.3,8.45205181]
[1745608810712,5.56610468,1796.6,1796.3,8.45205181]
[1745608811252,5.56591552,1796.7,1796.3,8.45205181]
[1745608811854,5.56612523,1796.6,1796.3,5.45205181]
[1745608812057,5.56654947,1796.5,1796.2,0.805]
[1745608812225,5.56656535,1796.5,1796.2,0.805]
[1745608812551,6.32516535,1796.5,1796.2,0.805]
[1745608812755,0.7586,1796.5,1796.2,0.805]
[1745608813096,6.32499625,1796.5,1796.2,0.805]
[1745608813370,0.7586,1796.5,1796.2,0.805]
[1745608814233,6.32512887,1796.5,1796.2,0.805]
[1745608814436,0.7586,1796.5,1796.2,0.805]
[1745608815169,6.32499648,1796.5,1796.2,0.805]
[1745608815351,0.7586,1796.5,1796.2,0.805]
[1745608817013,6.3250028,1796.5,1796.2,0.805]
[1745608817282,11.8916621,1796.5,1796.1,9.32735181]
[1745608817438,7.51416901,1796.5,1796.1,6.32735181]
[1745608817636,5.56678333,1796.4,1796.1,5.50305181]
[1745608818073,7.51416901,1796.5,1796.1,5.50305181]
[1745608819290,5.56675987,1796.4,1796.1,5.50305181]
[1745608820681,5.56704772,1796.3,1796.1,5.50305181]
[1745608820893,5.56704772,1796.3,1796.1,0.05]
[1745608821107,6.35370876,1796.2,1796.1,0.05]
[1745608822163,6.86990145,1796.2,1796.1,0.05]
[1745608822569,15.97990145,1796.2,1796.1,0.05]
[1745608822767,18.17563012,1796.2,1796.1,0.05]
[1745608825361,17.65943743,1796.2,1796.1,0.05]
[1745608826781,18.17540695,1796.2,1796.1,0.05]
[1745608827998,5.56916907,1795.6,1795.5,5.5626]
[1745608828189,5.56916907,1795.6,1795.5,4.792]
[1745608828385,5.56916907,1795.6,1795.3,0.7706]
[1745608828997,5.56916907,1795.6,1795.4,0.66005181]
[1745608829175,6.32393892,1795.8,1795.4,0.66005181]
[1745608829176,5.56903934,1795.7,1795.4,0.66005181]
[1745608829502,6.20146327,1795.7,1795.4,0.66005181]
[1745608831405,5.5692912,1795.6,1795.3,4.43065181]
[1745608831592,11.13871723,1795.6,1795.3,1.43065181]
[1745608831794,6.20140151,1795.7,1795.3,1.43065181]
[1745608832511,0.63242393,1795.7,1795.3,7.00070958]
[1745608832671,5.56919095,1795.6,1795.3,0.7706]
[1745608832873,6.18935244,1795.6,1795.3,0.7706]
[1745608833088,0.62016149,1795.6,1795.4,0.66005181]
[1745608834419,12.43391187,1795.8,1795.4,0.66005181]
[1745608834713,6.11,1795.8,1795.6,0.66005181]
[1745608835625,11.67866091,1795.8,1795.6,0.66005181]
[1745608836025,5.56916907,1795.6,1795.2,7.793]
[1745608836185,5.56916907,1795.6,1795.3,0.8075]
[1745608836380,6.20836598,1795.6,1795.3,0.8075]
[1745608836699,5.56959208,1795.5,1795.3,0.8075]
[1745608837429,6.2085478,1795.6,1795.3,0.8075]
[1745608837584,11.7780008,1795.6,1795.3,0.8075]
[1745608837935,5.56951811,1795.5,1795.3,0.8075]
[1745608838317,6.2085478,1795.6,1795.3,0.8075]
[1745608838835,5.56950952,1795.5,1795.3,0.8075]
[1745608839238,0.63919691,1795.6,1795.3,1.46755181]
[1745608839388,5.56901446,1795.7,1795.3,1.46755181]
[1745608839589,6.73691591,1795.7,1795.3,1.46755181]
[1745608840340,6.11,1795.8,1795.5,0.66005181]
[1745608840501,6.11,1795.8,1795.7,0.66005181]
[1745608842095,6.11,1795.8,1795.6,0.7832]
[1745608843191,11.67874995,1795.8,1795.6,0.7832]
[1745608843390,11.67874995,1795.8,1795.5,1.47345181]
[1745608843624,13.40346227,1795.8,1795.5,1.47345181]
[1745608844500,7.83471232,1795.8,1795.5,1.47345181]
[1745608844700,5.5682639,1795.9,1795.5,1.47345181]
[1745608845290,6.38601283,1795.8,1795.5,0.66005181]
[1745608845926,6.38601283,1795.8,1795.4,5.6204]
[1745608846129,6.08677705,1795.7,1795.4,5.6204]
[1745608846728,5.5693595,1795.6,1795.4,4.795]
[1745608846939,0.55693595,1795.5,1795.3,0.788]
[1745608847140,5.5693595,1795.6,1795.3,0.788]
[1745608847339,0.51827397,1795.5,1795.3,0.788]
[1745608847720,5.5690113,1795.7,1795.3,0.788]
[1745608848243,0.51828774,1795.6,1795.3,0.788]
[1745608848443,0.51828774,1795.6,1795.3,1.44805181]
[1745608848748,0.51828774,1795.5,1795.3,1.44805181]
[1745608849047,17.24690603,1795.9,1795.4,5.56978946]
[1745608849211,13.48178582,1795.9,1795.6,0.7977]
[1745608849406,0.51889563,1795.8,1795.6,0.7977]
[1745608849647,6.0874662,1795.8,1795.6,0.7977]
[1745608849852,6.0874662,1795.8,1795.5,0.66005181]
[1745608850060,0.51889563,1795.7,1795.5,0.66005181]
[1745608850555,5.56777348,1796.1,1795.6,6.38246907]
[1745608850738,6.979648,1796.1,1795.7,0.66005181]
[1745608851053,5.56793777,1796.0,1795.6,0.8133]
[1745608851243,0.51941904,1795.9,1795.6,0.8133]
[1745608851819,5.56808513,1796.0,1795.6,0.8133]
[1745608852337,5.56711768,1796.3,1795.9,1.47335181]
[1745608852533,5.56741314,1796.2,1795.9,1.47335181]
[1745608852837,0.51926848,1796.1,1795.9,1.47335181]
[1745608853020,1.11345308,1796.2,1795.9,1.47335181]
[1745608853227,5.56717539,1796.3,1795.9,1.47335181]
[1745608853637,5.56717539,1796.3,1795.9,7.0415554]
[1745608853950,0.51910311,1796.2,1795.9,1.47335181]
[1745608854149,0.51910311,1796.2,1796.1,0.66005181]
[1745608854751,5.56652411,1796.5,1796.1,0.66005181]
[1745608854951,0.55665241,1796.4,1796.1,0.66005181]
[1745608855115,1.0755785,1796.4,1796.1,0.66005181]
[1745608855517,0.55665241,1796.4,1796.1,0.66005181]
[1745608855733,6.1233517,1796.4,1796.1,0.66005181]
[1745608856053,0.55665241,1796.4,1796.1,0.66005181]
[1745608856622,6.1233731,1796.4,1796.1,0.66005181]
[1745608856815,6.1233731,1796.4,1796.0,0.8133]
[1745608856816,6.17936944,1796.3,1796.0,0.8133]
[1745608857037,0.61233731,1796.3,1796.0,0.8133]
[1745608857237,6.17936274,1796.3,1796.0,0.8133]
[1745608857617,6.17936274,1796.3,1795.9,5.45205181]
[1745608857818,0.61793627,1796.2,1795.9,6.26535181]
[1745608858059,0.61233731,1796.3,1795.9,11.83349594]
[1745608858623,0.55665241,1796.4,1795.9,5.45205181]
[1745608858837,5.56720046,1796.3,1795.9,4.792]
[1745608859126,5.56640121,1796.5,1796.0,1.47335181]
[1745608859326,5.5667059,1796.4,1796.0,1.47335181]
[1745608860768,5.56712262,1796.3,1796.0,1.47335181]
[1745608862174,5.5667059,1796.4,1796.0,1.47335181]
[1745608862380,6.75830129,1796.4,1796.0,1.47335181]
[1745608863191,6.75830129,1796.4,1796.0,7.04125393]
[1745608863976,6.75830129,1796.4,1796.0,1.47335181]
[1745608864375,5.56552399,1796.8,1796.1,6.37870529]
[1745608864545,5.56627191,1796.6,1796.2,0.66005181]
[1745608864734,11.13189731,1796.7,1796.3,0.8125]
[1745608864941,5.5658853,1796.7,1796.3,0.8125]
[1745608865356,5.56616715,1796.6,1796.3,0.8125]
[1745608865559,1.11320525,1796.6,1796.3,0.8125]
[1745608865739,5.56617973,1796.6,1796.3,0.8125]
[1745608867375,5.56680446,1796.4,1796.0,4.41375181]
[1745608867537,5.56680446,1796.4,1796.0,10.03734229]
[1745608867731,5.56650103,1796.5,1796.0,10.0372313]
[1745608868072,11.67624087,1796.6,1796.2,1.41375181]
[1745608869436,5.56505243,1797.0,1796.5,1.46245181]
[1745608869641,5.56505243,1797.0,1796.5,7.02873488]
[1745608869990,0.51832607,1796.9,1796.7,7.04967342]
[1745608870146,0.51832607,1796.9,1796.8,5.56544968]
[1745608870330,0.51832607,1796.9,1796.8,6.38934968]
[1745608870530,11.67396453,1797.3,1796.8,6.38934968]
[1745608870761,1.16739645,1797.2,1796.8,6.38934968]
[1745608870955,7.24982017,1797.2,1796.8,0.8239]
[1745608871162,5.56495711,1797.0,1796.8,0.8239]
[1745608871651,6.73178692,1797.2,1796.8,0.8239]
[1745608871854,5.56470629,1797.1,1796.8,0.8239]
[1745608872071,6.79435561,1797.1,1796.8,0.8239]
[1745608873038,12.35913378,1797.1,1796.8,0.8239]
[1745608873241,6.79435561,1797.1,1796.8,0.8239]
[1745608873976,1.22964932,1797.1,1796.8,0.8239]
[1745608874183,5.56436922,1797.2,1796.8,0.8239]
[1745608874387,11.67405619,1797.3,1796.8,7.04926997]
[1745608874550,5.56440276,1797.2,1796.8,1.48395181]
[1745608874748,11.67405707,1797.3,1796.8,7.04929142]
[1745608875246,11.67405707,1797.3,1796.8,7.0491969]
[1745608875466,5.56422321,1797.2,1796.8,1.48395181]
[1745608875777,11.67405547,1797.3,1796.8,7.0492926]
[1745608876078,5.56423799,1797.2,1796.8,1.48395181]
[1745608876277,11.67408532,1797.3,1796.8,7.04939388]
[1745608876447,11.67408532,1797.3,1796.8,7.105041]
[1745608876642,5.56422904,1797.2,1796.8,7.105041]
[1745608876848,5.56422904,1797.2,1796.8,7.04939388]
[1745608877279,5.56422904,1797.2,1796.8,1.48395181]
[1745608877684,11.12871543,1797.2,1796.8,1.48395181]
[1745608877852,5.5645345,1797.1,1796.8,1.48395181]
[1745608878181,5.56485455,1797.0,1796.8,0.8239]
[1745608878483,6.31965442,1797.1,1796.8,0.8239]
[1745608878683,5.56502233,1797.0,1796.7,4.791]
[1745608878993,5.56502233,1797.0,1796.7,5.5483]
[1745608879280,0.7549,1797.1,1796.7,5.5483]
[1745608879579,6.31967408,1797.1,1796.7,5.5483]
[1745608883391,5.56477408,1797.1,1796.7,11.11404605]
[1745608883586,11.67405032,1797.3,1796.8,6.22550135]
[1745608883754,11.67405032,1797.3,1797.0,0.66005181]
[1745608884155,5.56423563,1797.2,1796.9,0.819]
[1745608885663,11.67407598,1797.3,1796.9,0.819]
[1745608886490,5.56430486,1797.2,1796.9,0.819]
[1745608887882,5.56503437,1797.0,1796.7,5.6113]
[1745608888194,11.13014143,1797.0,1796.7,5.6113]
[1745608888418,5.56514893,1796.9,1796.5,3.8203]
[1745608888618,5.5659895,1796.7,1796.4,5.44805181]
[1745608889887,6.37891748,1796.8,1796.4,5.44805181]
[1745608890627,5.56531984,1796.9,1796.6,1.46875181]
[1745608891492,11.13075525,1796.9,1796.6,1.46875181]
[1745608891696,5.56531984,1796.9,1796.6,1.46875181]
[1745608891895,11.13073582,1796.9,1796.6,1.46875181]
[1745608892204,5.56668893,1796.4,1796.3,0.8087]
[1745608892514,5.56668893,1796.4,1796.1,3.0]
[1745608892515,5.56606924,1796.6,1796.1,10.03634374]
[1745608894009,5.56606924,1796.6,1796.3,0.66005181]
[1745608894214,12.50574904,1796.7,1796.3,0.66005181]
[1745608894415,6.11,1796.7,1796.5,0.66005181]
[1745608895987,5.56497444,1797.0,1796.6,6.32567972]
[1745608896322,0.51894684,1796.9,1796.7,0.66005181]
[1745608896684,0.51894684,1796.9,1796.7,6.22573667]
[1745608896922,6.36593512,1797.2,1796.8,0.7597]
[1745608897089,5.56433512,1797.2,1796.8,0.7597]
[1745608897288,0.51914505,1797.1,1796.8,0.7597]
[1745608897699,5.56433512,1797.2,1796.8,0.7597]
[1745608898889,0.51886888,1797.1,1796.8,0.7597]
[1745608899123,5.56433512,1797.2,1796.8,0.7597]
[1745608900217,6.08357414,1797.1,1796.8,0.7597]
[1745608900514,0.5190264,1797.1,1796.8,0.7597]
[1745608900721,6.08357762,1797.1,1796.8,0.7597]
[1745608900915,0.5190264,1797.0,1796.8,0.7597]
[1745608901421,11.12932009,1797.1,1796.8,0.7597]
[1745608901622,5.56455122,1797.1,1796.7,0.66005181]
[1745608901917,11.12930177,1797.1,1796.7,0.66005181]
[1745608902125,5.56455122,1797.1,1796.7,0.66005181]
[1745608902525,0.5190699,1797.0,1796.7,0.66005181]
[1745608902825,5.56455122,1797.1,1796.7,0.66005181]
[1745608904028,0.51900633,1797.0,1796.7,0.66005181]
[1745608904627,5.56455122,1797.1,1796.7,0.66005181]
[1745608905694,5.56486603,1797.0,1796.7,0.66005181]
[1745608906329,5.56455122,1797.1,1796.7,0.66005181]
[1745608907074,0.51897375,1797.0,1796.7,0.66005181]
[1745608907332,5.56455122,1797.1,1796.7,0.66005181]
[1745608908028,11.12934579,1797.1,1796.7,0.66005181]
[1745608908226,5.56507231,1797.0,1796.7,0.66005181]
[1745608908431,5.5653537,1796.9,1796.6,0.8215]
[1745608908632,6.08433956,1796.9,1796.6,0.8215]
[1745608909234,0.51898586,1796.8,1796.6,0.8215]
[1745608909819,5.5653537,1796.9,1796.6,0.8215]
[1745608910125,5.56555547,1796.8,1796.6,0.8215]
[1745608910500,5.5653537,1796.9,1796.6,0.8215]
[1745608910826,0.51899687,1796.8,1796.6,0.8215]
[1745608911414,5.5653537,1796.9,1796.6,0.8215]
[1745608912123,0.51898911,1796.8,1796.6,0.8215]
[1745608912727,5.5653537,1796.9,1796.6,0.8215]
[1745608913820,0.519017,1796.8,1796.6,0.8215]
[1745608914216,6.08460648,1796.8,1796.6,0.8215]
[1745608914408,6.7305855,1796.8,1796.5,0.66005181]
[1745608914632,12.29630517,1796.8,1796.4,5.6087]
[1745608914830,6.08478164,1796.7,1796.4,5.6087]
[1745608915312,5.5661606,1796.6,1796.2,1.47975181]
[1745608915513,5.56637907,1796.5,1796.2,1.47975181]
[1745608915710,11.82120903,1796.6,1796.2,1.47975181]
[1745608916049,0.51894975,1796.5,1796.2,1.47975181]
[1745608916216,5.56678355,1796.4,1796.2,0.8197]
[1745608916416,6.08544844,1796.5,1796.2,0.8197]
[1745608916643,6.25489683,1796.6,1796.2,0.8197]
[1745608917750,0.5188205,1796.5,1796.3,0.66005181]
[1745608918448,5.5659378,1796.7,1796.3,0.66005181]
[1745608918924,0.51876096,1796.6,1796.3,0.66005181]
[1745608919318,5.5659378,1796.7,1796.3,0.66005181]
[1745608919520,5.5659378,1796.7,1796.4,0.8167]
[1745608919849,1.16499602,1796.8,1796.5,0.66005181]
[1745608920144,5.56554387,1796.8,1796.5,0.66005181]
[1745608921154,0.51876932,1796.7,1796.5,0.66005181]
[1745608921645,11.13124458,1796.8,1796.5,0.66005181]
[1745608921827,5.56554387,1796.8,1796.5,0.66005181]
[1745608922554,0.51874957,1796.7,1796.5,0.66005181]
[1745608923152,11.13127428,1796.8,1796.5,0.66005181]
[1745608923814,5.56554387,1796.8,1796.5,0.66005181]
[1745608924420,0.51885645,1796.7,1796.5,0.66005181]
[1745608924957,5.56554387,1796.8,1796.5,0.66005181]
[1745608925752,6.393808,1796.9,1796.5,0.66005181]
[1745608926123,0.51884069,1796.8,1796.5,0.66005181]
[1745608926842,0.51884069,1796.7,1796.5,0.66005181]
[1745608927040,6.393808,1796.9,1796.5,0.66005181]
[1745608927234,7.58968895,1796.9,1796.5,0.66005181]
[1745608927434,6.08432705,1796.8,1796.5,0.66005181]
[1745608927640,0.5188675,1796.7,1796.5,0.66005181]
[1745608928148,0.5188675,1796.7,1796.4,0.8167]
[1745608928355,5.56545955,1796.8,1796.4,0.8167]
[1745608928531,6.8809762,1796.8,1796.4,0.8167]
[1745608929358,0.51896631,1796.7,1796.4,0.8167]
[1745608929720,0.51896631,1796.7,1796.5,0.66005181]
[1745608929920,5.56502556,1797.0,1796.6,0.7719]
[1745608930328,11.13010886,1797.0,1796.6,0.7719]
[1745608930536,5.56524103,1796.9,1796.6,0.7719]
[1745608930857,0.51911362,1796.8,1796.6,0.7719]
[1745608931245,5.56524103,1796.9,1796.6,0.7719]
[1745608933663,5.56549557,1796.8,1796.6,0.7719]
[1745608933966,5.56524103,1796.9,1796.6,0.7719]
[1745608936367,5.56501358,1797.0,1796.6,0.7719]
[1745608937738,12.50748169,1797.1,1796.6,1.43195181]
[1745608937960,13.75822986,1797.1,1796.6,6.99793704]
[1745608938271,13.75822986,1797.1,1796.6,6.99784268]
[1745608938272,0.51933594,1797.0,1796.6,6.99784268]
[1745608938466,1.03867457,1797.0,1796.6,6.99784268]
[1745608938673,0.51933594,1796.9,1796.6,6.99784268]
[1745608939262,0.51933863,1797.0,1796.6,6.99784268]
[1745608939465,11.67468169,1797.1,1796.6,6.99784268]
[1745608939663,0.51950995,1797.0,1796.6,6.99784268]
[1745608939875,6.08443875,1797.0,1796.6,6.99784268]
[1745608940174,0.51950995,1796.9,1796.6,1.43195181]
[1745608940374,0.51950995,1796.9,1796.6,6.99800764]
[1745608940547,5.56468169,1797.1,1796.7,0.7569]
[1745608941375,0.51948823,1797.0,1796.7,0.7569]
[1745608941761,5.56535055,1796.9,1796.7,0.7569]
[1745608941966,6.08502363,1796.8,1796.5,5.5756]
[1745608942173,5.56606924,1796.6,1796.2,5.44705181]
[1745608942372,5.56639702,1796.5,1796.3,0.814]
[1745608942573,5.56639702,1796.5,1796.2,5.44705181]
[1745608942574,5.56639702,1796.5,1796.2,6.26105181]
[1745608942777,5.56672767,1796.4,1796.2,6.26105181]
[1745608942942,5.56653902,1796.5,1796.2,6.26105181]
[1745608943272,0.51925812,1796.4,1796.2,6.26105181]
[1745608943475,6.08598635,1796.4,1796.2,6.26105181]
[1745608943777,5.56653902,1796.5,1796.2,6.26105181]
[1745608943963,12.32341037,1796.5,1796.2,6.26105181]